Cogmind - Beta 13 *** ADVENTURER MODE // 2024.05.19 @ 01:06:57 Player: AnotherZach Result: Destroyed by S-27 Virus with Autogun Performance ------------- Evolutions (6) 3000 Regions Visited (17) 3400 Robots Destroyed (465) 2325 Value Destroyed (17835) 17835 Prototype IDs (39) 780 Alien Tech Used (0) 0 Bonus (4563) 4563 TOTAL SCORE: 31903 Bonus ------- High Alert Combat Kills 2665 Follower Combat Kills 476 Entered Garrisons 200 Entered DSFs 500 Aligned with FarCom 300 Acquired ECA 300 Met R17 at Cetus 500 Friendly Fire -378 Cogmind --------- Core Integrity 0/1150 Matter 13/300 Energy 359/450 System Corruption 4% Temperature Cool (1) Movement Flying (40) Location -4/Upper Caves Parts ------- > --- POWER (2) -------- (None) > --- PROPULSION (6) --- Impulse Thruster > --- UTILITY (7) ------ Energy Well Core Analyzer Armor Integrity Analyzer Advanced Hacking Suite System Shield > --- WEAPON (4) ------- (None) > --- INVENTORY (5) ---- Angular Momentum Engine Encrypted Comm Array Authchip [Processor] Peak State ------------ > --- POWER ------------ Micro Fission Core Light Quantum Reactor > --- PROPULSION ------- Flexi-carbon Leg Flexi-carbon Leg Flexi-carbon Leg Medium Armored Exoskeleton > --- UTILITY ---------- Advanced Heat Sink Huge Storage Unit Energy Well Targeting Computer Centrium Medium Armor Plating Improved Thermal Shield Improved Dynamic Insulation System > --- WEAPON ----------- Phase Gun Heavy Plasma Cannon Gauss Rifle Advanced KE Penetrator > --- INVENTORY -------- F-cell Engine Improved Treads Armored Medium Treads Improved Surge Thruster Improved Surge Thruster Improved Surge Thruster Improved Heat Sink Medium Storage Unit Improved Matter Compressor Advanced Weight Redist. System Improved Kinecellerator Improved Medium Armor Plating Layered Medium Armor Plating Centrium Medium Armor Plating EM Disruption Field Advanced Shield Generator Dynamic Insulation System Tesla Rifle Plasma Rifle [Rating: 114] Favorites ----------- Power Ion Engine Engine Ion Engine Power Core Micro Nuclear Core Reactor Quantum Reactor Propulsion Wheel Treads Advanced Treads Leg Armored Leg Wheel Wheel Flight Unit Improved Surge Thruster Utility Huge Storage Unit Device Advanced Heat Sink Storage Huge Storage Unit Processor Improved Targeting Computer Hackware Hacking Suite Protection Centrium Medium Armor Plating Weapon Light Cannon Energy Gun Plasma Rifle Energy Cannon Cooled Particle Cannon Ballistic Gun Hypervelocity Gauss Rifle Ballistic Cannon Light Cannon Launcher Rocket Launcher Special Weapon Plasma Cutter Impact Weapon Hammer Build | -11 -10 -10 -9 -9 -9 -8 -8 -7 -7 -7 -7 -6 -6 -6 -5 -4 -4 ------- Run | Yrd Mat Min Mat Min Exi Min Mat Fac Gar Fac DSF Fac Ext Cet Fac Fac Upp Slots Evolved 12 | . . . 2 . . . 2 2 . . . 2 . . 2 2 . Power 1 | . . . . . . . . . . . . 1 . . . . . Propulsion 4 | . . . . . . . 1 1 . . . 1 . . 1 . . Utility 5 | . . . 1 . . . 1 1 . . . . . . 1 1 . Weapon 2 | . . . 1 . . . . . . . . . . . . 1 . Parts Attached 467 | 7 7 6 16 11 . 3 36 45 42 . 15 89 18 12 70 80 10 Power 49 | 1 . 1 2 1 . . 2 3 2 . 1 14 2 2 5 12 1 Engine 35 | 1 . 1 2 1 . . 2 3 1 . 1 12 2 . 2 6 1 Core 7 | . . . . . . . . . 1 . . 2 . . 3 1 . Reactor 7 | . . . . . . . . . . . . . . 2 . 5 . Propulsion 124 | 2 2 3 2 3 . . 10 13 9 . 5 28 5 2 25 12 3 Treads 23 | . . . . . . . . . . . 4 11 1 2 5 . . Leg 54 | . . . . . . . 3 4 9 . . 16 1 . 13 6 2 Wheel 38 | 2 2 3 2 3 . . 7 9 . . . . 3 . 7 . . Hover . | . . . . . . . . . . . . . . . . . . Flight 9 | . . . . . . . . . . . 1 1 . . . 6 1 Utility 177 | 2 3 1 3 3 . 2 9 21 20 . 6 35 9 2 26 32 3 Device 101 | 1 . 1 1 1 . 1 4 15 12 . 2 25 5 . 17 15 1 Storage 18 | 1 2 . . . . . 1 2 2 . 2 . 1 . . 6 1 Processor 8 | . . . 2 . . . . . 1 . . 2 . . 1 1 1 Hackware 5 | . . . . . . . 1 . . . . 2 . . . 2 . Protection 45 | . 1 . . 2 . 1 3 4 5 . 2 6 3 2 8 8 . Artifact . | . . . . . . . . . . . . . . . . . . Weapon 117 | 2 2 1 9 4 . 1 15 8 11 . 3 12 2 6 14 24 3 Energy Gun 38 | 1 . . 1 1 . 1 2 3 5 . 1 4 . 1 9 9 . Energy Cannon 15 | . . . . 1 . . 2 1 5 . 1 1 . . 2 2 . Ballistic Gun 21 | 1 . . 1 . . . 1 . . . . 1 1 5 2 7 2 Ballistic Cannon 32 | . 2 1 4 1 . . 7 1 . . 1 6 1 . 1 6 1 Launcher 3 | . . . . 1 . . . 1 1 . . . . . . . . Special Weapon 1 | . . . 1 . . . . . . . . . . . . . . Impact Weapon 7 | . . . 2 . . . 3 2 . . . . . . . . . Slashing Weapon . | . . . . . . . . . . . . . . . . . . Piercing Weapon . | . . . . . . . . . . . . . . . . . . Special Melee Weapon . | . . . . . . . . . . . . . . . . . . Unidentified Prototypes 15 | . . . 1 . . . 3 1 . . . 2 1 4 1 2 . Parts Lost 109 | . . 1 . 8 . . 3 4 7 . 6 16 4 4 22 30 4 Power 15 | . . . . 1 . . . . 1 . 1 4 1 1 2 4 . Propulsion 35 | . . . . 2 . . 3 2 2 . 2 4 . 2 10 7 1 Utility 30 | . . . . 2 . . . 2 2 . 2 7 1 . 3 10 1 Weapon 29 | . . 1 . 3 . . . . 2 . 1 1 2 1 7 9 2 Highest Loss Streak 13 | . . 1 . 7 . . 2 3 2 . 3 9 4 2 11 13 3 To Critical Strikes 3 | . . . . . . . . . . . . . . 3 . . . Average Slot Usage (%) 91 | . 100 100 97 97 100 100 98 98 98 100 93 92 75 82 88 71 44 Engine 8 | . 14 14 8 10 11 11 9 7 2 . 3 11 13 9 . 1 2 Core 1 | . . . . . . . . . 4 7 3 1 . . 1 3 . Reactor 1 | . . . . . . . . . . . . . . 2 7 2 . Treads 4 | . . . . . . . . . . . 8 19 2 15 3 . . Leg 7 | . . . . . . . . 11 29 30 17 12 5 . 4 14 3 Wheel 13 | . 28 28 22 21 22 22 25 17 . . . . 10 1 17 . . Device 11 | . 7 5 11 10 11 7 6 13 15 15 14 14 9 7 14 15 2 Storage 8 | . 14 14 11 11 11 11 9 7 10 7 7 6 6 6 5 4 5 Processor 4 | . . . 11 11 11 11 5 . . 7 7 5 6 6 4 5 10 Hackware 1 | . . . . . . . 8 7 1 . . . . . . . 10 Protection 5 | . 6 8 . . . 3 5 7 8 7 6 4 5 11 7 3 . Energy Gun 5 | . . . . 5 11 16 1 3 10 23 16 6 . . 6 11 . Energy Cannon 3 | . . . . 5 11 11 6 11 10 . 2 1 . . 1 1 . Ballistic Gun 3 | . . . 11 5 . . 2 2 . . . . 5 18 7 . . Ballistic Cannon 7 | . 26 28 20 10 . . 16 2 . . 1 5 6 . . . . Naked Turns . | . . . . . . . . . . . . . . . . . . Heaviest Build 157 | 14 94 94 95 100 98 102 112 121 108 104 119 152 152 153 157 144 31 Greatest Support 136 | 26 26 26 22 22 20 20 60 96 96 73 82 110 83 136 110 110 25 Greatest Overweight (x) 15 | . 4 4 4 4 4 5 10 5 1 1 2 2 5 4 15 3 1 Average Overweight (x) 1 | . 1 3 3 4 4 4 2 1 . 1 1 1 1 1 1 . . Largest Inventory Capacity 25 | 8 25 25 25 25 25 25 25 25 25 25 25 25 25 25 25 25 5 Average Capacity 23 | 7 17 25 25 25 25 25 25 23 21 25 24 25 25 25 25 20 5 Most Carried 25 | 5 20 25 25 25 25 25 25 25 25 25 25 25 25 25 25 25 5 Average Carried 22 | 2 13 23 24 23 24 25 24 22 20 25 23 23 24 24 24 18 2 Final Capacity 25 | 8 25 25 25 25 25 25 25 20 25 25 25 25 25 25 25 5 5 Final Carried 25 | 5 20 25 24 25 25 25 25 20 25 25 25 25 25 25 21 5 3 Class Distribution -------------------- 22% | Scavenger-Tank 20% | Scavenger-Skirmisher 15% | Scavenger-Gunner 10% | Mutant 9% | Scavenger-Mutant 7% | Tank 6% | Gunner 4% | Hacker-Tank Dominant Class ---------------- Mutant | -10/Materials Mutant | -10/Mines Scavenger-Skirmisher | -9/Materials Scavenger-Skirmisher | -9/Mines Scavenger-Skirmisher | -9/Exiles Scavenger-Skirmisher | -8/Mines Scavenger-Skirmisher | -8/Materials Scavenger-Tank | -7/Factory Scavenger-Tank | -7/Garrison Scavenger-Gunner | -7/Factory Scavenger-Gunner | -7/DSF Scavenger-Gunner | -6/Factory Tank | -6/Extension Scavenger-Tank | -6/Cetus Scavenger-Tank | -5/Factory Scavenger-Tank | -4/Factory Hacker-Mutant | -4/Upper Caves Resources | -11 -10 -10 -9 -9 -9 -8 -8 -7 -7 -7 -7 -6 -6 -6 -5 -4 -4 ----------- Run | Yrd Mat Min Mat Min Exi Min Mat Fac Gar Fac DSF Fac Ext Cet Fac Fac Upp Matter Collected 12188 | 180 686 488 522 294 . 57 1102 1184 442 . 184 2657 1233 567 2034 497 61 Remotely 477 | . . . . . . . . . . . . . 477 . . . . Salvage Created 19915 | 130 466 360 730 255 . 107 1655 2332 1060 . 443 3230 1824 753 3791 2751 28 Parts 920 | 11 35 36 44 17 . 8 91 92 43 . 24 112 83 38 181 102 3 Haulers Intercepted 12 | . 2 . 1 . . . 2 1 . . . 2 2 . . 2 . Recyclers Shooed 21 | . . . 2 2 . . 2 2 . . . 9 . . 2 2 . Parts Field Recycled . | . . . . . . . . . . . . . . . . . . Retrieved Matter . | . . . . . . . . . . . . . . . . . . Parts Self-Destructed 12 | . . . . . . . . . . . . . . . . . 12 Prevented 3 | . . . . . . . . . . . . . . . . . 3 Kills | -11 -10 -10 -9 -9 -9 -8 -8 -7 -7 -7 -7 -6 -6 -6 -5 -4 -4 ------- Run | Yrd Mat Min Mat Min Exi Min Mat Fac Gar Fac DSF Fac Ext Cet Fac Fac Upp Combat Hostiles Destroyed 309 | . 9 10 12 7 . 6 28 40 24 . 9 48 25 10 42 37 2 Guns 101 | . . . 1 1 . 2 1 4 6 . 6 9 4 9 35 21 2 Cannons 181 | . 9 10 11 6 . 1 26 31 14 . 2 36 21 1 6 7 . AOE 11 | . . . . . . 3 . 4 3 . . 1 . . . . . Classes Destroyed 21 | 2 5 1 3 1 . . 2 2 1 . 2 1 1 . . . . Worker 53 | . 5 2 1 1 . . 7 7 . . . 4 1 . 11 14 . Builder 28 | . . 4 . . . . 5 4 . . . 3 1 . 9 2 . Tunneler 11 | 4 . 2 . 1 . . . . . . . . 1 . 3 . . Hauler 12 | . 2 . 1 . . . 2 1 . . . 2 2 . . 2 . Recycler 30 | 1 1 . 3 1 . . 3 5 . . . 9 2 . 4 1 . Mechanic 3 | . . . . . . . . 1 . . . . . . 1 1 . Operator 4 | . . . 1 . . . . 1 . . . 1 . . 1 . . Watcher 20 | . 3 . 2 . . . 3 1 . . . 4 1 2 4 . . Swarmer 50 | . 3 4 . 3 . 3 3 4 3 . 3 5 3 . 4 10 2 Cutter 3 | . . . . . . . . . 3 . . . . . . . . Grunt 128 | . 6 6 5 2 . 3 17 27 5 . 3 18 8 . 19 9 . Brawler 7 | . . . . . . . 1 . 2 . . 2 . . 1 1 . Duelist 9 | . . . 2 1 . . . . 2 . . 2 . . . 2 . Protector 1 | . . . . . . . . . . . . 1 . . . . . Sentry 27 | . . . 5 . . . 5 3 3 . . 1 8 . 2 . . Demolisher 2 | . . . . 1 . . . . . . . 1 . . . . . Specialist 4 | . . . . . . . . . . . 2 2 . . . . . Hunter 30 | . . . . . . . 2 2 2 . . 8 4 2 5 5 . Programmer 34 | . . . . . . . . 4 4 . . 6 1 . 9 10 . Heavy 4 | . . . . . . . . . . . 1 2 . . 1 . . Behemoth 2 | . . . . . . . . . . . . . 1 . 1 . . Cetus Guard 8 | . . . . . . . . . . . . . . 8 . . . Savage 1 | . . . . . . . . . . . . . 1 . . . . Butcher 1 | . . . . . . . . . . . . . 1 . . . . Best Kill Streak 12 | 5 9 3 3 3 . 3 12 7 6 . 6 6 9 5 11 12 2 Combat Bots Only 7 | . 7 2 2 3 . 3 5 5 6 . 6 5 4 4 6 6 2 Max Kills in Single Turn 4 | 1 2 2 1 1 . 1 3 2 2 . 1 2 2 1 3 4 1 Gunslinging 1 | . . . . . . . . . 1 . . . . . . . . Exploded 2 | . . . . . . 1 . 1 2 . . 1 . . . . . Melee . | . . . . . . . . . . . . . . . . . . Uniques/NPCs Destroyed . | . . . . . . . . . . . . . . . . . . Combat | -11 -10 -10 -9 -9 -9 -8 -8 -7 -7 -7 -7 -6 -6 -6 -5 -4 -4 -------- Run | Yrd Mat Min Mat Min Exi Min Mat Fac Gar Fac DSF Fac Ext Cet Fac Fac Upp Hostile Shots Fired 2583 | . 29 21 37 40 . 14 123 202 153 . 95 487 291 91 388 542 70 Missed 749 | . 8 3 10 3 . 3 39 71 51 . 20 118 88 28 93 192 22 Damage Taken 24573 | . 203 163 300 799 . 130 974 1411 1161 . 1122 4549 2164 1036 4552 5347 662 Core 3252 | . 49 23 78 160 . 40 83 108 109 . 219 342 245 87 551 929 229 Absorbed by Shields 1155 | . . . . . . . . . . . . 685 238 232 . . . Ignored by Resistances 7915 | . 62 50 83 221 . 38 283 421 345 . 323 1473 710 339 1467 1907 193 Regen/Repaired (Parts) 114 | . . . 35 . . . 68 11 . . . . . . . . . Core Remaining (%) 55 | 100 . 71 . . . 30 84 . . . 37 . . 20 44 . . Volleys Fired 950 | 13 30 35 48 22 . 11 81 86 61 . 18 183 65 35 147 107 8 Largest 4 | 2 2 2 3 3 . 2 3 3 3 . 3 3 2 3 3 4 2 Hottest 720 | 60 70 70 90 93 . 135 224 241 260 . 255 240 108 108 720 328 90 Shots Fired 2375 | 26 60 69 136 55 . 15 228 241 175 . 52 337 122 98 404 348 9 Gun 1230 | 26 . . 44 20 . 4 40 62 45 . 42 135 57 91 350 306 8 Cannon 1114 | . 60 69 88 33 . 4 188 164 127 . 10 202 65 7 54 42 1 Launcher 27 | . . . . 2 . 7 . 15 3 . . . . . . . . Special 4 | . . . 4 . . . . . . . . . . . . . . Kinetic 1193 | 13 60 69 132 52 . . 160 57 . . . 150 122 98 229 42 9 Thermal 1123 | . . . 4 1 . 8 68 169 172 . 52 177 . . 169 303 . Explosive 27 | . . . . 2 . 7 . 15 3 . . . . . . . . Electromagnetic 32 | 13 . . . . . . . . . . . 10 . . 6 3 . Robot Hit Streak 47 | 6 12 14 17 15 . 12 20 14 29 . 14 39 28 47 32 31 6 Robot Miss Streak 6 | 1 3 2 5 2 . 2 6 3 4 . 1 5 2 1 4 2 1 Penetration Max 2 | . . . . . . . . . . . . 1 2 1 1 1 . Secondary Targets 19 | . . . . . . . . . 1 . 1 . . 2 10 5 . Max Gunslinging Chain 1 | . . . . . . . . . 1 . 1 . . 1 1 1 . Shots Hit Robots 1658 | 18 39 40 90 40 . 8 122 167 88 . 40 258 91 85 302 263 7 Core Hits 755 | 6 21 21 30 17 . 9 64 92 46 . 16 120 47 36 129 97 4 Critical Kills 34 | . . . . . . . 1 2 1 . . . 7 8 13 2 . Critical Parts Destroyed 54 | . . . . . . . 2 . . . . . 11 10 30 1 . Critical Strikes 161 | 1 3 . 2 . . . 6 4 1 . 8 20 27 21 47 21 . Burn 40 | . . . . . . . . 1 . . 8 10 . . 3 18 . Meltdown 5 | . . . . . . . . 1 1 . . . . . 1 2 . Destroy 82 | . . . . . . . 1 . . . . . 19 19 42 1 . Blast 30 | . 3 . 2 . . . 3 1 . . . 10 8 2 1 . . Corrupt 1 | 1 . . . . . . . . . . . . . . . . . Smash 3 | . . . . . . . 2 1 . . . . . . . . . Melee Attacks 37 | . . . 11 . . . 12 14 . . . . . . . . . Impact 37 | . . . 11 . . . 12 14 . . . . . . . . . Slashing . | . . . . . . . . . . . . . . . . . . Piercing . | . . . . . . . . . . . . . . . . . . Sneak Attacks 8 | . . . . . . . . 8 . . . . . . . . . Combat Hostiles . | . . . . . . . . . . . . . . . . . . Follow-up Attacks . | . . . . . . . . . . . . . . . . . . Damage Inflicted 51162 | 212 733 748 1371 582 . 612 3503 6096 3024 . 879 11403 3962 1563 8709 7584 181 Guns 20099 | 212 . . 255 141 . 66 341 886 655 . 655 2270 360 1170 6937 6012 139 Cannons 27377 | . 733 748 1116 430 . 18 3016 3754 2176 . 224 8919 3602 393 1191 1025 32 Explosions 3080 | . . . . 11 . 528 86 926 193 . . 214 . . 581 541 . Melee 590 | . . . . . . . 60 530 . . . . . . . . . Ramming 16 | . . . . . . . . . . . . . . . . 6 10 Kinetic 23951 | 63 733 748 1371 554 . . 2023 637 . . . 7404 3962 1563 4004 718 171 Thermal 24121 | . . . . 17 . 84 1334 4003 2831 . 879 3853 . . 4321 6799 . Explosive 1936 | . . . . 11 . 528 . 926 193 . . . . . 278 . . Electromagnetic 548 | 149 . . . . . . 86 . . . . 146 . . 106 61 . Impact 590 | . . . . . . . 60 530 . . . . . . . . . Slashing . | . . . . . . . . . . . . . . . . . . Piercing . | . . . . . . . . . . . . . . . . . . Highest Corruption 9 | . . . . . . . . 1 4 4 4 1 . . 5 9 9 Average Corruption 3 | . . . . . . . . 1 2 4 4 1 . . 3 8 5 Corruption Purged 7 | . . . . . . . . . . . . 2 . . . . 5 Corruption Blocked . | . . . . . . . . . . . . . . . . . . Effects 88 | . . . . . . . . 1 20 2 8 6 . . 26 18 7 Message Errors 19 | . . . . . . . . . 3 1 2 . . . 8 4 1 Matter Fused 25 | . . . . . . . . 1 7 . 3 1 . . 7 6 . Heat Flow Errors 13 | . . . . . . . . . 4 . 1 2 . . 2 2 2 Energy Discharges 10 | . . . . . . . . . 3 1 . 1 . . 3 . 2 Parts Rejected 2 | . . . . . . . . . . . . . . . 1 . 1 Data Loss (minor) 11 | . . . . . . . . . 2 . 2 1 . . 2 4 . Data Loss (major) 3 | . . . . . . . . . . . . 1 . . 1 . 1 Misfires 4 | . . . . . . . . . 1 . . . . . 2 1 . Weapon Failures 1 | . . . . . . . . . . . . . . . . 1 . Overload Shots 91 | . . . . . . . 13 36 16 . 1 14 . . 11 . . Effects 5 | . . . . . . . 1 1 3 . . . . . . . . Energy Bleed 2 | . . . . . . . . . 2 . . . . . . . . Heat Surge 1 | . . . . . . . . 1 . . . . . . . . . Short Circuit 2 | . . . . . . . 1 . 1 . . . . . . . . Overflow Damage 1970 | . 9 . 26 . . 3 82 310 86 . . 1020 178 . 133 123 . Projectiles 1652 | . 9 . 26 . . . 22 235 72 . . 1020 178 . 36 54 . Explosions 185 | . . . . . . 3 . 2 14 . . . . . 97 69 . Melee 133 | . . . . . . . 60 73 . . . . . . . . . Knockbacks 131 | . 7 8 14 5 . . 14 10 . . . 60 9 . 4 . . Impact 4 | . . . . . . . . 4 . . . . . . . . . Kinetic 122 | . 7 8 14 5 . . 13 5 . . . 58 8 . 4 . . Secondary 5 | . . . . . . . 1 1 . . . 2 1 . . . . Self-Inflicted Damage 302 | . . . . 20 . 16 . 89 73 . . . . . 34 70 . Shots 9 | . . . . 1 . 1 . 3 2 . . . . . 1 1 . Rammed 7 | . . . . . . . . . . . . . . . . 7 . Targets Rammed 12 | . . . . . . . . . . . . . . . . 7 5 Kicked 5 | . . . . . . . . . . . . . . . . . 5 Crushed . | . . . . . . . . . . . . . . . . . . Highest Temperature 695 | 40 90 93 110 84 . 243 518 533 460 . 199 461 310 . 695 391 200 Average Temperature 97 | 21 26 28 32 28 . 80 125 104 148 . 63 105 54 . 111 113 99 Received Heat Transfer 5554 | . 114 99 141 48 . 81 621 729 240 . 459 989 660 . 932 372 69 Effects 37 | . . . . . . . 4 3 8 . . 5 . . 13 4 . Shutdowns 16 | . . . . . . . 2 1 2 . . 3 . . 4 4 . Energy Bleed 6 | . . . . . . . . . 2 . . 1 . . 3 . . Interference 9 | . . . . . . . 1 1 1 . . 1 . . 5 . . Short Circuit 1 | . . . . . . . 1 . . . . . . . . . . Damage (minor) 2 | . . . . . . . . . 1 . . . . . 1 . . Damage (major) 3 | . . . . . . . . 1 2 . . . . . . . . Siege Activations . | . . . . . . . . . . . . . . . . . . Robots Corrupted . | . . . . . . . . . . . . . . . . . . Combat Hostiles . | . . . . . . . . . . . . . . . . . . Parts Fried 9 | . . . . . . . 1 7 . . . . . . . 1 . Impact Corruptions 7 | . . . . . . . 2 5 . . . . . . . . . Robots Melted 18 | . . . . . . . . 1 1 . 1 3 . . 1 11 . Combat Hostiles 15 | . . . . . . . . 1 1 . 1 2 . . 1 9 . Parts Melted 131 | . . . . . . . . 9 17 . 9 23 . . 26 47 . Heat Transferred 39624 | . . . . 37 . 148 1706 5003 4295 . 2822 7105 . . 5960 12548 . Parts Sabotaged 1 | . . . . . . . . . . . . . . . . 1 . Parts Stolen . | . . . . . . . . . . . . . . . . . . Parts Stripped . | . . . . . . . . . . . . . . . . . . Power Chain Reactions 4 | . . . . . . . 1 . . . . 2 . . . 1 . Alert | -11 -10 -10 -9 -9 -9 -8 -8 -7 -7 -7 -7 -6 -6 -6 -5 -4 -4 ------- Run | Yrd Mat Min Mat Min Exi Min Mat Fac Gar Fac DSF Fac Ext Cet Fac Fac Upp Peak Influence 1428 | 25 209 153 259 211 . 191 589 861 1428 649 594 638 621 380 918 1190 . Initial 649 | . 13 12 . 66 . . . 113 429 649 399 269 181 229 110 339 . Average 347 | 9 48 47 114 144 . 91 166 354 1045 649 512 327 349 284 430 628 . Maximum Alert Level 4 | . 1 . 1 1 . . 2 3 4 2 2 2 2 1 3 4 . Low Security (%) 39 | 100 94 100 88 65 . 100 67 36 . . . 15 12 . 31 . . Level 1 26 | . 5 . 11 34 . . 23 22 . . 16 60 45 99 16 19 . Level 2 20 | . . . . . . . 8 33 16 100 83 24 41 . 20 58 . Level 3 7 | . . . . . . . . 7 27 . . . . . 30 13 . Level 4 4 | . . . . . . . . . 55 . . . . . . 8 . Level 5 . | . . . . . . . . . . . . . . . . . . High Security . | . . . . . . . . . . . . . . . . . . Max Security . | . . . . . . . . . . . . . . . . . . Sterilizations 1 | . . . . . . . . . . . 1 . . . . . . Squads Dispatched 78 | . 2 . 3 . . . 5 16 . . 2 18 6 1 12 13 . Investigation 26 | . 2 . 2 . . . 3 7 . . . 1 4 1 3 3 . Extermination 15 | . . . . . . . . 3 . . . 5 . . 4 3 . Reinforcement 28 | . . . 1 . . . 2 5 . . 2 9 1 . 5 3 . Assault 6 | . . . . . . . . 1 . . . . 1 . . 4 . Garrison 3 | . . . . . . . . . . . . 3 . . . . . Intercept . | . . . . . . . . . . . . . . . . . . Searches Triggered . | . . . . . . . . . . . . . . . . . . Construction Impeded 9 | . . . . . . . 1 2 . . . 1 1 . 3 1 . Haulers Reinforced 6 | . . . . . . . . 2 . . . 2 . . 1 1 . Active Scanning Responses . | . . . . . . . . . . . . . . . . . . Cargo Convoy Interrupts 2 | . . . . . . . . . . . . 1 . . . 1 . Stealth | -11 -10 -10 -9 -9 -9 -8 -8 -7 -7 -7 -7 -6 -6 -6 -5 -4 -4 --------- Run | Yrd Mat Min Mat Min Exi Min Mat Fac Gar Fac DSF Fac Ext Cet Fac Fac Upp Distress Signals 15 | . 1 . 2 . . . 1 1 . . . 3 1 2 2 2 . Communications Jammed . | . . . . . . . . . . . . . . . . . . Distress Signals . | . . . . . . . . . . . . . . . . . . Times Spotted 463 | . 11 13 23 7 . 7 37 55 24 . 9 72 40 12 47 95 11 Peak Tracking Total 12 | . 5 3 3 3 . 3 5 6 3 . 5 7 8 5 5 12 7 Tactical Retreats 46 | . . 1 1 . . 1 5 8 . . 2 4 4 . . 14 6 Traps | -11 -10 -10 -9 -9 -9 -8 -8 -7 -7 -7 -7 -6 -6 -6 -5 -4 -4 ------- Run | Yrd Mat Min Mat Min Exi Min Mat Fac Gar Fac DSF Fac Ext Cet Fac Fac Upp Traps Triggered 15 | . 2 . 2 . . . 1 1 2 . . 1 2 . 2 2 . Indirectly 1 | . . . . . . . 1 . . . . . . . . . . Trap Hack Attempts . | . . . . . . . . . . . . . . . . . . Triggered . | . . . . . . . . . . . . . . . . . . Disarmed . | . . . . . . . . . . . . . . . . . . Reprogrammed . | . . . . . . . . . . . . . . . . . . Reused . | . . . . . . . . . . . . . . . . . . Traps Extracted . | . . . . . . . . . . . . . . . . . . Installed . | . . . . . . . . . . . . . . . . . . Triggered 1 | . . . . . . . . . . . . . 1 . . . . Objects Rigged 4 | . . . . . . . 4 . . . . . . . . . . Exploded 1 | . . . . . . . 1 . . . . . . . . . . Machines | -11 -10 -10 -9 -9 -9 -8 -8 -7 -7 -7 -7 -6 -6 -6 -5 -4 -4 ---------- Run | Yrd Mat Min Mat Min Exi Min Mat Fac Gar Fac DSF Fac Ext Cet Fac Fac Upp Machines Disabled 66 | . 1 3 . . . . 4 3 7 . . 10 4 . 29 5 . Max in Single Turn 12 | . 1 1 . . . . 4 1 2 . . 3 1 . 12 1 . Garrison Relay 3 | . . . . . . . . . 3 . . . . . . . . Phase Generator 1 | . . . . . . . . . 1 . . . . . . . . Machines Repaired . | . . . . . . . . . . . . . . . . . . Machines Dismantled . | . . . . . . . . . . . . . . . . . . Machines Sabotaged . | . . . . . . . . . . . . . . . . . . Overloaded Fab Kills . | . . . . . . . . . . . . . . . . . . Hacking | -11 -10 -10 -9 -9 -9 -8 -8 -7 -7 -7 -7 -6 -6 -6 -5 -4 -4 --------- Run | Yrd Mat Min Mat Min Exi Min Mat Fac Gar Fac DSF Fac Ext Cet Fac Fac Upp Machines Accessed 75 | . 5 . 7 . 2 . 8 11 2 2 . 12 8 3 8 7 . Terminals 42 | . 5 . 4 . . . 6 2 2 1 . 6 8 3 2 3 . Fabricators 6 | . . . . . . . . 2 . . . 3 . . 1 . . Repair Stations 7 | . . . 1 . . . 1 2 . . . 1 . . 1 1 . Recycling Units 9 | . . . 1 . . . . 2 . . . 2 . . 3 1 . Scanalyzers 7 | . . . 1 . . . 1 1 . 1 . . . . 1 2 . Garrison Access 2 | . . . . . . . . 2 . . . . . . . . . Total Hacks 247 | . 25 . 26 . 10 . 31 45 6 5 . 30 18 8 25 18 . Successful 153 | . 11 . 19 . 10 . 23 36 3 3 . 15 6 3 15 9 . Failed 93 | . 14 . 7 . . . 7 9 3 2 . 15 12 5 10 9 . Catastrophic 6 | . . . . . . . . . . . . 1 2 1 1 1 . Database Lockouts 1 | . . . . . . . 1 . . . . . . . . . . Manual 92 | . 13 . 10 . 1 . 13 13 4 . . 11 8 . 12 7 . Terminals 134 | . 25 . 10 . . . 22 14 6 1 . 13 18 8 7 10 . Fabricators 15 | . . . . . . . . 4 . . . 6 . . 5 . . Repair Stations 26 | . . . 2 . . . 5 6 . . . 7 . . 3 3 . Recycling Units 20 | . . . 4 . . . . 4 . . . 4 . . 7 1 . Scanalyzers 35 | . . . 10 . . . 4 10 . 4 . . . . 3 4 . Garrison Access 7 | . . . . . . . . 7 . . . . . . . . . Terminal Hacks 55 | . 8 . 4 . 10 . 9 7 2 1 . 4 3 3 2 2 . Record 12 | . . . . . 9 . . . . . . . . 3 . . . Part Schematic 1 | . . . . . . . . 1 . . . . . . . . . Robot Analysis 8 | . 3 . 1 . . . 3 . . . . 1 . . . . . Open Door 2 | . . . . . . . . . . . . . 2 . . . . Open DSF 1 | . . . . . . . . . . 1 . . . . . . . Level Access Points 1 | . . . . . . . 1 . . . . . . . . . . Branch Access Points 3 | . . . 1 . . . 1 . . . . 1 . . . . . Emergency Access Points 3 | . 1 . . . . . . . 1 . . . . . . 1 . Alert Level 1 | . . . . . . . . 1 . . . . . . . . . Unreport Threat 5 | . 1 . . . . . 2 1 . . . . 1 . . . . Locate Traps 1 | . . . . . . . . . . . . . . . 1 . . Dispatch Records 4 | . 2 . 1 . . . 1 . . . . . . . . . . Maintenance Status 1 | . . . . . . . . . . . . . . . 1 . . Surveillance Status 2 | . . . . . . . 1 1 . . . . . . . . . Reinforcement Status 1 | . . . . . . . . 1 . . . . . . . . . Recall Investigation 1 | . . . . . . . . 1 . . . . . . . . . Recall Reinforcements 1 | . . . . . . . . 1 . . . . . . . . . Hauler Manifests 2 | . . . . . . . . . . . . 1 . . . 1 . Zone Layout 3 | . 1 . 1 . . . . . . . . 1 . . . . . Security Stations 1 | . . . . . . . . . 1 . . . . . . . . Derelict Proto ID Bank 1 | . . . . . 1 . . . . . . . . . . . . Fabricator Hacks 4 | . . . . . . . . 2 . . . 1 . . 1 . . Network Status 3 | . . . . . . . . 1 . . . 1 . . 1 . . Build 1 | . . . . . . . . 1 . . . . . . . . . Repair Station Hacks 15 | . . . 2 . . . 5 4 . . . 1 . . 2 1 . Scan Component 10 | . . . 1 . . . 3 3 . . . 1 . . 1 1 . Repair 5 | . . . 1 . . . 2 1 . . . . . . 1 . . Recycling Unit Hacks 4 | . . . 2 . . . . 1 . . . 1 . . . . . Report Inventory 1 | . . . 1 . . . . . . . . . . . . . . Retrieve Matter 1 | . . . . . . . . . . . . 1 . . . . . Retrieve Components 2 | . . . 1 . . . . 1 . . . . . . . . . Scanalyzer 25 | . . . 6 . . . 4 9 . 2 . . . . 2 2 . Insert Component 13 | . . . 3 . . . 2 5 . 1 . . . . 1 1 . Analyze 12 | . . . 3 . . . 2 4 . 1 . . . . 1 1 . Garrison Access Hacks 1 | . . . . . . . . 1 . . . . . . . . . Unlock Access 1 | . . . . . . . . 1 . . . . . . . . . Unauthorized Hacks 49 | . 3 . 5 . . . 5 12 1 . . 8 3 . 8 4 . Terminals 22 | . 3 . 2 . . . 5 2 1 . . 2 3 . 2 2 . Track 1 | . 1 . . . . . . . . . . . . . . . . Assimilate 2 | . . . . . . . 1 . . . . . 1 . . . . Botnet 18 | . 2 . 2 . . . 3 2 1 . . 2 2 . 2 2 . Detonate 1 | . . . . . . . 1 . . . . . . . . . . Fabricators 9 | . . . . . . . . 2 . . . 4 . . 3 . . Report 2 | . . . . . . . . . . . . 1 . . 1 . . Liberate 6 | . . . . . . . . 2 . . . 3 . . 1 . . Download 1 | . . . . . . . . . . . . . . . 1 . . Repair Stations . | . . . . . . . . . . . . . . . . . . Recycling Units 11 | . . . 2 . . . . 3 . . . 2 . . 3 1 . Reject 9 | . . . 1 . . . . 2 . . . 2 . . 3 1 . Recyclers 2 | . . . 1 . . . . 1 . . . . . . . . . Scanalyzers 3 | . . . 1 . . . . 1 . . . . . . . 1 . Extract 3 | . . . 1 . . . . 1 . . . . . . . 1 . Garrison Access 4 | . . . . . . . . 4 . . . . . . . . . Redirect 2 | . . . . . . . . 2 . . . . . . . . . Reprogram 2 | . . . . . . . . 2 . . . . . . . . . Data Cores Recovered 3 | . . . 1 . . . . 1 . . . . 1 . . . . Used 1 | . . . . . . . . 1 . . . . . . . . . Hacking Detections 62 | . 5 . 7 . . . 8 11 2 1 . 9 5 2 7 5 . Full Trace Events 20 | . 3 . . . . . 2 5 1 . . 1 3 1 2 2 . Feedback Events 2 | . . . . . . . . 1 . . . 1 . . . . . Corruption 2 | . . . . . . . . 1 . . . 1 . . . . . Feedback Blocked . | . . . . . . . . . . . . . . . . . . Robot Schematics Acquired 1 | . . . . . . . . . . . . . . . 1 . . Robots Built . | . . . . . . . . . . . . . . . . . . Authchips . | . . . . . . . . . . . . . . . . . . Time . | . . . . . . . . . . . . . . . . . . Total Robot Build Rating . | . . . . . . . . . . . . . . . . . . Part Schematics Acquired 18 | . . . 5 . . . 2 6 . 1 . . . . . 4 . Parts Built 1 | . . . . . . . . 1 . . . . . . . . . Authchips . | . . . . . . . . . . . . . . . . . . Time 53 | . . . . . . . . 53 . . . . . . . . . Total Part Build Rating 6 | . . . . . . . . 6 . . . . . . . . . Parts Repaired 4 | . . . 1 . . . 2 1 . . . . . . . . . Time 274 | . . . 26 . . . 114 26 . . . . . . 108 . . Parts Recycled . | . . . . . . . . . . . . . . . . . . Recycled Matter . | . . . . . . . . . . . . . . . . . . Retrieved Matter . | . . . . . . . . . . . . . . . . . . Retrieved Components 13 | . . . 3 . . . . 10 . . . . . . . . . Parts Scanalyzed 12 | . . . 3 . . . 2 4 . 1 . . . . 1 1 . Part Schematics Acquired 11 | . . . 3 . . . 2 4 . 1 . . . . . 1 . Parts Damaged . | . . . . . . . . . . . . . . . . . . Bothacking | -11 -10 -10 -9 -9 -9 -8 -8 -7 -7 -7 -7 -6 -6 -6 -5 -4 -4 ------------ Run | Yrd Mat Min Mat Min Exi Min Mat Fac Gar Fac DSF Fac Ext Cet Fac Fac Upp Used RIF Installer . | . . . . . . . . . . . . . . . . . . Robots Hacked . | . . . . . . . . . . . . . . . . . . Non-combat . | . . . . . . . . . . . . . . . . . . Combat . | . . . . . . . . . . . . . . . . . . Robot Hacks Applied . | . . . . . . . . . . . . . . . . . . Relay Couplers Released 16 | . . . . . . . . . 16 . . . . . . . . Machine Destruction 13 | . . . . . . . . . 13 . . . . . . . . Programmers 3 | . . . . . . . . . 3 . . . . . . . . Fabnet Peak Effective % . | . . . . . . . . . . . . . . . . . . Robots Rewired 4 | . . . . . . . . . . . . . 3 . . 1 . Allies Hacked . | . . . . . . . . . . . . . . . . . . Hacks Repelled . | . . . . . . . . . . . . . . . . . . Allies | -11 -10 -10 -9 -9 -9 -8 -8 -7 -7 -7 -7 -6 -6 -6 -5 -4 -4 -------- Run | Yrd Mat Min Mat Min Exi Min Mat Fac Gar Fac DSF Fac Ext Cet Fac Fac Upp Total Allies 23 | . . 6 . . . . . 3 . . . 4 9 . . 1 . Largest Group 8 | . . 6 6 . . . . 3 . . . 2 8 . . 1 . Highest-Rated Group 364 | . . 110 110 . . . . 48 . . . 64 364 . . 47 . Highest-Rated Ally 159 | . . 31 31 . . . . 16 . . . 32 159 . . 47 . Total Orders 8 | . . . . . . . . 7 1 . . . . . . . . EXPLORE 5 | . . . . . . . . 4 1 . . . . . . . . RETURN 3 | . . . . . . . . 3 . . . . . . . . . Ally Attacks 137 | . . 5 40 . . . . 16 . . . 30 41 . . 5 . Total Damage 3277 | . . 21 443 . . . . 147 . . . 1033 1443 . . 190 . Kills 23 | . . . 5 . . . . 1 . . . 9 8 . . . . Allies Corrupted . | . . . . . . . . . . . . . . . . . . Allies Melted . | . . . . . . . . . . . . . . . . . . Intel | -11 -10 -10 -9 -9 -9 -8 -8 -7 -7 -7 -7 -6 -6 -6 -5 -4 -4 ------- Run | Yrd Mat Min Mat Min Exi Min Mat Fac Gar Fac DSF Fac Ext Cet Fac Fac Upp Robot Analysis Total 8 | . 3 . 1 . . . 3 . . . . 1 . . . . . Derelict Logs Recovered 2 | . . 2 . . . . . . . . . . . . . . . Drone Launches 5 | . . . . . . . . 4 1 . . . . . . . . Drone Recoveries 4 | . . . . . . . . 4 . . . . . . . . . Exploration | -11 -10 -10 -9 -9 -9 -8 -8 -7 -7 -7 -7 -6 -6 -6 -5 -4 -4 ------------- Run | Yrd Mat Min Mat Min Exi Min Mat Fac Gar Fac DSF Fac Ext Cet Fac Fac Upp Turns Passed 18646 | 93 607 1729 960 485 847 492 1428 1658 1259 83 335 3245 999 555 2285 1322 264 Spaces Moved 9852 | 45 442 1129 506 278 602 314 588 989 700 46 102 1115 503 183 1077 951 282 Core 24 | 5 . . . . . . . . . . . . . . . 19 . Treads 1011 | . . . . . . . . . . . 35 677 . 158 141 . . Legs 2298 | . . . . . . . 13 449 700 46 67 438 74 . 140 265 106 Wheels 5676 | 40 442 1129 506 278 602 314 575 540 . . . . 429 25 796 . . Hover . | . . . . . . . . . . . . . . . . . . Flight 843 | . . . . . . . . . . . . . . . . 667 176 Fastest Speed 15 | 50 90 135 130 140 140 140 116 105 100 184 163 190 130 130 105 15 40 Average Speed 138 | 85 106 138 141 142 140 143 124 110 132 184 210 216 138 223 148 81 74 Slowest Speed 610 | 90 140 140 145 145 140 155 230 176 184 184 255 305 190 240 610 205 190 Overloaded Moves 71 | . . . . . . . . . . . . . . . . 71 . Propulsion Burnouts 1 | . . . . . . . . . . . . . . . . 1 . Robots Hopped 7 | . . . . . . . . . . . . . . . . 6 1 Cave-ins Triggered . | . . . . . . . . . . . . . . . . . . Exploration Rate (%) 50 | 5 54 100 51 49 91 82 38 46 76 1 61 33 55 69 26 29 45 Regions Visited 17 Branch Regions 7 Pre-discovered Areas 3 | . . 2 . . . . . . . . . . . . . . 1 Known Exits Taken 6 | . . . 1 . . 1 1 1 . 1 . 1 . . . . . Unknown Exits Taken 9 | 1 1 1 . 1 1 . . . . . . . 1 1 1 1 . Scrap Searched 5 | . . 2 . . . 1 . . . . . . . . . . 2 Spaces Dug 41 | . . . 6 . . . 10 7 2 . . 8 . . 8 . . Terrain Destroyed 668 | . . . 6 5 . 55 51 114 137 . 1 59 10 7 188 35 . Melee 12 | . . . 6 . . . 5 1 . . . . . . . . . Projectile 190 | . . . . . . . 43 18 6 . 1 42 10 6 56 8 . AOE 464 | . . . . 5 . 55 3 95 131 . . 17 . . 131 27 . Terrain Rammed . | . . . . . . . . . . . . . . . . . . Walls Destroyed . | . . . . . . . . . . . . . . . . . . Machines Disabled . | . . . . . . . . . . . . . . . . . . Actions | -11 -10 -10 -9 -9 -9 -8 -8 -7 -7 -7 -7 -6 -6 -6 -5 -4 -4 --------- Run | Yrd Mat Min Mat Min Exi Min Mat Fac Gar Fac DSF Fac Ext Cet Fac Fac Upp Total 12873 | 76 522 1236 635 328 608 339 1087 1352 888 45 191 1600 658 251 1467 1261 329 Wait 724 | . 13 37 26 2 . 12 303 124 30 . 18 51 4 . 71 24 9 Move 9822 | 44 441 1128 505 277 601 313 587 988 699 45 101 1114 502 182 1076 939 280 Hop 7 | . . . . . . . . . . . . . . . . 6 1 Pick Up 472 | 12 23 18 17 13 3 . 38 51 28 . 22 91 25 13 65 44 9 Fast Attach . | . . . . . . . . . . . . . . . . . . Attach 273 | 7 3 2 6 9 . . 12 18 12 . 10 57 11 8 50 58 10 Detach 23 | . . . . . . . . . . . 1 5 . . 1 14 2 Swap 194 | . 4 4 10 2 . 3 24 27 30 . 5 32 7 4 20 22 . Drop 317 | . 8 12 12 3 3 . 30 44 18 . 16 67 21 9 37 32 5 Fire 950 | 13 30 35 48 22 . 11 81 86 61 . 18 183 65 35 147 107 8 Melee 37 | . . . 11 . . . 12 14 . . . . . . . . . Ram 6 | . . . . . . . . . . . . . . . . 6 . Kick 5 | . . . . . . . . . . . . . . . . . 5 Crush . | . . . . . . . . . . . . . . . . . . Escape Stasis 10 | . . . . . . . . . 10 . . . . . . . . Rewire 33 | . . . . . 1 . . . . . . . 23 . . 9 . Trap . | . . . . . . . . . . . . . . . . . . Miscellaneous . | . . . . . . . . . . . . . . . . . . Route ------- -11/Scrapyard -10/Materials (discovered 3 exits: *Mat x2 / [*Min]) -10/Mines (discovered 2 exits: *Mat x2) -9/Materials (discovered 3 exits: *Mat x2 / *Min) -9/Mines -9/Exiles -8/Mines -8/Materials (discovered 3 exits: *Fac x3) -7/Factory (discovered 5 exits: *Fac x2 / *Sto / [*Low] / Gar) -7/Garrison (discovered 3 exits: *Fac x3) -7/Factory -7/DSF -6/Factory (discovered 5 exits: *Fac / *Low x2 / *Ext x2) -6/Extension (discovered 2 exits: *Fac / *Cet) -6/Cetus (discovered 2 exits: *Fac / [*Arc]) -5/Factory -4/Factory -4/Upper Caves History --------- Turn | Location | Event 11 | -11/Scrapyard | Discovered new exit (range 15) 94 | -11/Scrapyard | Entered Materials 223 | -10/Materials | Discovered new exit (range 9) 288 | -10/Materials | Discovered new exit (range 12) 314 | -10/Materials | Build established: Mutant 452 | -10/Materials | Discovered new exit (range 8) 462 | -10/Materials | Destroyed 7 combat bots 701 | -10/Materials | Entered Mines 796 | -10/Mines | Learned location of Zion (-7) 1177 | -10/Mines | Discovered new exit (range 11) 1217 | -10/Mines | Assisted by bots powering up and referring to "LRC-V3" 1363 | -10/Mines | Received a Rocket Launcher from a helpful Derelict 1406 | -10/Mines | Discovered new exit (range 9) 1494 | -10/Mines | Escorted by a lone wolf Derelict 1514 | -10/Mines | Learned location of Storage (-7) 2066 | -10/Mines | Build established: Scavenger-Mutant 2430 | -10/Mines | Entered Materials 2430 | -9/Materials | Accompanied by 6 allies 2430 | -9/Materials | Evolved 2 slots: Utility x1, Weapon x1 2435 | -9/Materials | Led the pair of lost Derelicts to an unsafe place 2673 | -9/Materials | Discovered new exit (range 16) 2736 | -9/Materials | Build established: Scavenger-Skirmisher 2892 | -9/Materials | Identified exit to Materials 3016 | -9/Materials | Repaired Lgt. Cannon 3063 | -9/Materials | Identified exit to Mines 3216 | -9/Materials | Discovered exit to Materials (range 16) 3390 | -9/Materials | Entered Mines 3505 | -9/Mines | Assembled infested the area 3640 | -9/Mines | Core integrity fell below 50% 3678 | -9/Mines | Lost 7 parts (1p1n2u3w) 3758 | -9/Mines | Joined a pair of Derelicts in attacking an 0b10 outpost 3858 | -9/Mines | Discovered new exit (range 10) 3870 | -9/Mines | Deemed a non-threat by the Exiles lab entrance 3875 | -9/Mines | Entered Exiles 3916 | -9/Exiles | Met 8R-AWN 3936 | -9/Exiles | Met EX-HEX 3994 | -9/Exiles | Met EX-BIN 4019 | -9/Exiles | Aligned with FarCom system 4021 | -9/Exiles | Given EX-Vault access code 4053 | -9/Exiles | Opened EX-Vault 4070 | -9/Exiles | Found Supersonic Drone Bay 4086 | -9/Exiles | Found Potential Leg 4089 | -9/Exiles | Found Potential Leg 4119 | -9/Exiles | Warned to stay clear of 0b10 Research branches 4287 | -9/Exiles | Met EX-DEC 4315 | -9/Exiles | Visited The Gauntlet 4547 | -9/Exiles | Discovered new exit (range 10) 4722 | -9/Exiles | Stole two prototypes: Potential Leg, Supersonic Drone Bay 4722 | -9/Exiles | Entered Mines 5158 | -8/Mines | Discovered exit to Materials (range 5) 5214 | -8/Mines | Entered Materials 5214 | -8/Materials | Evolved 2 slots: Propulsion x1, Utility x1 5865 | -8/Materials | Identified exit to Factory 5865 | -8/Materials | Central database locked down 6487 | -8/Materials | Repaired Broken Cld. Particle Cannon 6514 | -8/Materials | Repaired Wheel 6642 | -8/Materials | Entered Factory 6642 | -7/Factory | Evolved 2 slots: Propulsion x1, Utility x1 6643 | -7/Factory | Identified exit to Storage 6644 | -7/Factory | FarCom data flow suspended 6691 | -7/Factory | Discovered new exit (range 71) 6823 | -7/Factory | Discovered new exit (range 30) 6946 | -7/Factory | Fabricated Imp. Powered Armor (x1) 6970 | -7/Factory | Build established: Scavenger-Tank 7148 | -7/Factory | Repaired Wheel 7324 | -7/Factory | Lost 3 parts (2n1u) 7562 | -7/Factory | Discovered new exit (range 33) 7986 | -7/Factory | Build established: Hacker-Tank 8223 | -7/Factory | Identified exit to Garrison 8242 | -7/Factory | First assault squad dispatched 8300 | -7/Factory | Entered Garrison 8326 | -7/Garrison | Triggered checkpoint 8359 | -7/Garrison | Discovered new exit (range 63) 8361 | -7/Garrison | Discovered new exit (range 33) 8378 | -7/Garrison | Garrison Relay disabled 8388 | -7/Garrison | Learned Factory security intel 8542 | -7/Garrison | Triggered checkpoint 8608 | -7/Garrison | Discovered new exit (range 12) 8694 | -7/Garrison | Triggered checkpoint 8710 | -7/Garrison | Garrison Relay disabled 8856 | -7/Garrison | Phase Generator disabled 9248 | -7/Garrison | Triggered checkpoint 9250 | -7/Garrison | Garrison Relay disabled 9297 | -7/Garrison | Build established: Scavenger-Tank 9403 | -7/Garrison | Spotted B-75 Beast 9559 | -7/Garrison | Entered Factory 9563 | -7/Factory | Identified exit to DSF 9642 | -7/Factory | Entered DSF 9685 | -7/DSF | Additional patrols routed to DSF 9764 | -7/DSF | Build established: Scavenger-Gunner 9787 | -7/DSF | Discovered new exit (range 15) 9807 | -7/DSF | Core integrity fell below 50% 9815 | -7/DSF | Lost 3 parts (1n1u1w) 9871 | -7/DSF | Lost 3 parts (1p1n1u) 9876 | -7/DSF | Sterilization system engaged 9896 | -7/DSF | Ambient heat levels rising (+10) 9911 | -7/DSF | Ambient heat levels rising (+10) 9926 | -7/DSF | Ambient heat levels rising (+10) 9941 | -7/DSF | Ambient heat levels rising (+10) 9956 | -7/DSF | Ambient heat levels rising (+10) 9971 | -7/DSF | Ambient heat levels rising (+10) 9977 | -7/DSF | Entered Factory 9977 | -6/Factory | Evolved 2 slots: Power x1, Propulsion x1 10650 | -6/Factory | Spotted B-75 Beast 10969 | -6/Factory | Allies destroyed B-75 Beast 11118 | -6/Factory | Cargo convoy interrupted 11225 | -6/Factory | Lost 9 parts (1p4n3u1w) 11524 | -6/Factory | Build established: Tank 11673 | -6/Factory | Specialist reinforcements revealed to be Infiltrators 11788 | -6/Factory | Identified exit to Lower Caves 11788 | -6/Factory | Identified exit to Extension 12508 | -6/Factory | Build established: Gunner 12805 | -6/Factory | Garrison activated, responded to threat 12840 | -6/Factory | Discovered new exit (range 5) 13222 | -6/Factory | Entered Extension 13294 | -6/Extension | Rescued A7 13338 | -6/Extension | Rescued a captive Derelict 13339 | -6/Extension | Rescued a captive Derelict 13473 | -6/Extension | Rescued a captive Derelict 13497 | -6/Extension | Rescued a captive Derelict 13498 | -6/Extension | Rescued a captive Derelict 13614 | -6/Extension | Spotted B-75 Beast 13618 | -6/Extension | Lost 3 allies 13635 | -6/Extension | Spotted B-75 Beast 13656 | -6/Extension | Core integrity fell below 50% 13681 | -6/Extension | Lost 5 allies 13685 | -6/Extension | Extracted ID and sensor layout for unrecognized location from A7's data core 13700 | -6/Extension | Destroyed B-75 Beast 13730 | -6/Extension | Lost 4 parts (1p1u2w) 13922 | -6/Extension | First assault squad dispatched 14047 | -6/Extension | Disrupted transfer network 14119 | -6/Extension | Build established: Tank 14197 | -6/Extension | Discovered new exit (range 16) 14198 | -6/Extension | Discovered new exit (range 15) 14221 | -6/Extension | Entered Cetus 14238 | -6/Cetus | Spotted Cetus Guard 14238 | -6/Cetus | Spotted Cetus Guard 14244 | -6/Cetus | Spotted Cetus Guard 14245 | -6/Cetus | Destroyed Cetus Guard 14249 | -6/Cetus | Spotted Cetus Guard 14252 | -6/Cetus | Destroyed Cetus Guard 14259 | -6/Cetus | Destroyed Cetus Guard 14295 | -6/Cetus | Destroyed Cetus Guard 14541 | -6/Cetus | Discovered new exit (range 15) 14559 | -6/Cetus | Build established: Scavenger-Tank 14587 | -6/Cetus | Spotted Cetus Guard 14587 | -6/Cetus | Spotted Cetus Guard 14591 | -6/Cetus | Spotted Cetus Guard 14599 | -6/Cetus | Destroyed Cetus Guard 14600 | -6/Cetus | Spotted Cetus Guard 14619 | -6/Cetus | Destroyed Cetus Guard 14622 | -6/Cetus | Destroyed Cetus Guard 14628 | -6/Cetus | Destroyed Cetus Guard 14653 | -6/Cetus | Discovered new exit (range 16) 14669 | -6/Cetus | Met Revision 17 14776 | -6/Cetus | Entered Factory 14776 | -5/Factory | Evolved 2 slots: Propulsion x1, Utility x1 15543 | -5/Factory | Spotted B-75 Beast 15569 | -5/Factory | Destroyed B-75 Beast 15955 | -5/Factory | Build established: Scavenger-Gunner 16384 | -5/Factory | Discovered new exit (range 14) 16459 | -5/Factory | Lost 6 parts (1p3n2w) 16921 | -5/Factory | Core integrity fell below 50% 16960 | -5/Factory | Lost 11 parts (1p3n3u4w) 17061 | -5/Factory | Entered another Factory area 17061 | -4/Factory | Evolved 2 slots: Utility x1, Weapon x1 17516 | -4/Factory | Build established: Scavenger-Tank 17783 | -4/Factory | Cargo convoy interrupted 17784 | -4/Factory | Spotted Striker 17848 | -4/Factory | First assault squad dispatched 17932 | -4/Factory | Lost 7 parts (1p1n4u1w) 18033 | -4/Factory | Lost 13 parts (1p3n4u5w) 18235 | -4/Factory | Spotted B-86 Titan 18272 | -4/Factory | Core integrity fell below 50% 18306 | -4/Factory | Lost 6 parts (3n2u1w) 18381 | -4/Factory | Discovered new exit (range 5) 18382 | -4/Factory | Core integrity fell below 20% 18383 | -4/Factory | Entered Upper Caves 18390 | -4/Upper Caves | Met a Warlord Commander 18392 | -4/Upper Caves | Warlord Commander delivered Encrypted Comm Array 18402 | -4/Upper Caves | Found Encrypted Comm Array 18507 | -4/Upper Caves | Attracted the attention of an 0b10 checkpoint 18622 | -4/Upper Caves | Build established: Hacker-Mutant 18647 | -4/Upper Caves | Destroyed by S-27 Virus with Autogun Last Messages --------------- 18570_ Dropped Armor Integrity Analyzer. 18571_ Acquired Angular Momentum Engine. 18582_ Acquired 34 matter. 18583_ Dropped Angular Momentum Engine. 18584_ Acquired Armor Integrity Analyzer. 18586_ Acquired Angular Momentum Engine. 18597_ Targeting Computer destroyed. 18598_ Dropped Impulse Thruster. 18600_ Acquired Impulse Thruster. 18603_ S-27 Virus destroyed. 18607_ VTOL Module fries itself beyond repair. 18611_ Kicked S-27 Virus. 18612_ Lgt. Nuclear Core fries itself beyond repair. 18613_ Kicked S-27 Virus. 18617_ Autogun fries itself beyond repair. 18617_ S-27 Virus destroyed. 18620_ Hvy. Battle Rifle destroyed. 18642_ Myomer Leg destroyed. 18645_ System corrupted: Energy discharge (-99). Map ----- +----------------------------------------------------+ | | | | | | | ?????????????????????????????????????????????????? | | ?????????????????????????????????????????????????? | | ?????????????????????????????????????????????????? | | ?????????????????????????????????????????????????? | | ?????????????????????????????????????????????????? | | ?????????????????????????????????????????????????? | | ?????????????????????????????????????????????????? | | ?????????????????????????????????????????????????? | | ?????????????????????????????????????????????????? | | ?????????????????????????????????????????????????? | | ?????????????????????????????????????????????????? | | ?????????????????????????????????????????????????? | | ?????????????????????????????????????????????????? | | ??????????????????##??###?#??????????????????????? | | ??????????????????#$ ? ? ? ?????????????????? | | ??????????????????# ????????????????? | | ??????????????????# $""""""" ????????????????? | | ??????????????????# """""" ###????????????? | | ??????????????????# " " " ##???????????? | | ??????????????????# #???????????? | | ??????????????????# """"""" #???????????? | | ???????????% ????# ?# """""" #???????????? | | ?????????? ### ### @ " " " #####???????? | | ?????????? # ???????? | | ???????????????# ????????? | | ????????????????# ####???????????? | | ???????????????## ###??????????????? | | ???????????????# ##????????????????? | | ???????????????## #?????????????????? | | ????????????????# ## ##?????????????????? | | ??????????????# ### #?# ##??????????????????? | | ?????????????# ???####??# ##???????????????????? | | ???????????? ??????????# #??####??????????????? | | ???????????? ??????????#s #?# #??????????????? | | ????????????? ???????###s ## ##?????????????? | | ??????????????# ????### ##????????????? | | ??????????????# #??## #????????????? | | ??????????????# #?# ## #????????????? | | ???????????????# ## ##????#????????????? | | ????????????????# ### #??????????????????? | | ????????????????## #?# #??????????????????? | | ?????????????????## #### ##??????????????????? | | ??????????????????# #??##???????????????????? | | ?????????????????## #???????????????????????? | | ?????????????????# ##??????????????????????? | | ????????????????## #??????????????????????? | | ????????????????# #??????????????????????? | +----------------------------------------------------+ Best States ------------- Heat Dissipation 116 Coolant Potential 65 Energy Generation 45 Energy Capacity 1000 Matter Stores 468 Matter Capacity 600 Sight Range 16 Terrain Scan Range 16 Terrain Scan Density 85 Additional Mass Support 9 EM Shielding 5 Armor Coverage 600 Resistance: KI 20 Resistance: TH 45 Resistance: EX 20 Resistance: EM 45 Resistance: I 20 Resistance: S 20 Resistance: P 20 Phase Shifting 10 Evasion (%) 65 Targeting Accuracy 6 Core Analysis 6 Armor Integrity Analysis 30 Recoil Reduction 5 Matter Filtering 30 Energy Filtering 30 Particle Charging 20 Kinecelleration 40 Offensive Hacking 24 Defensive Hacking 10 Authchip Count 1 Item Schematics ----------------- Seismic Detector | -9/Materials | Scanalyzed Wheel | -9/Materials | Scanalyzed Hrd. Light Armor Plating | -9/Materials | Scanalyzed EM Shotgun | -9/Materials | Extracted Tractor Beam | -9/Materials | Extracted Cld. Particle Cannon | -8/Materials | Scanalyzed Med. Armor Plating | -8/Materials | Scanalyzed Hvy. Rocket Launcher | -7/Factory | Scanalyzed Huge Storage Unit | -7/Factory | Scanalyzed Imp. Deuterium Engine | -7/Factory | Scanalyzed Coolant Injector | -7/Factory | Scanalyzed Hvy. Mace | -7/Factory | Extracted Exp. Targeting Computer | -7/Factory | Hacked Surge Thruster | -7/Factory | Scanalyzed Myomer Leg | -4/Factory | Scanalyzed Adv. System Shield | -4/Factory | Extracted Energy Well | -4/Factory | Extracted Hacking Suite | -4/Factory | Extracted Robot Schematics ------------------ H-66 Slayer | -5/Factory | Downloaded Fabricated ------------ Imp. Powered Armor | x1 | -7/Factory | Preloaded Alien Tech Used ----------------- None Achievements -------------- Left-hand Path Challenges ------------ None Game ------ Seed FireSlugProtomatter Manual? 0 Play Time 03:53:14 Cumulative 337.9 hours Start 2024.05.18 @ 21:14:47 End 2024.05.19 @ 01:06:57 Sessions 1 Manual Loads 0 Difficulty Adventurer Special Mode None Game No. 48 Rogue 0 Adventurer 48 Explorer 0 Win Type - Total 3 Types 2/0/0/1/0/0/0/0/0 Lore% 44 Gallery% 72 Achievement% 61 Wizard Run 0 Options --------- Layout 2 ASCII 0 Keyboard 0 Movement Mouse Keybinds 0 Fullscreen 1 Font 24/Smallcaps Map View 50x49 Zoom Use 0% Tactical HUD 1 Map Filters NONE Filters NONE Steam 1 RUN: 1190b7ed-bc1b-498a-91e0-4dffff752502